[Event "NED-ch U16 Youth 2019"]
[Site "Assen"]
[Date "2019.04.30"]
[Round "3.1"]
[White "Hilwerda, Jonas"]
[Black "Bruil, Rembrandt"]
[Result "0-1"]
[ECO "B31"]
[WhiteElo "2312"]
[BlackElo "2178"]
[Annotator "NA"]
[PlyCount "116"]
[EventDate "2019.04.28"]
[EventType "swiss"]
[EventCountry "NED"]
[SourceTitle "playchess.com"]
[Source "ChessBase"]
[SourceQuality "1"]
[TimeControl "40/5400+30:1800+30"]

1. e4 {[%emt 0:00:00]} c5 {[%emt 0:00:00]} 2. Nf3 {[%emt 0:00:00]} Nc6 {[%emt 0:00:00]} 3. Bb5 {[%emt 0:00:00]} g6 {[%emt 0:00:00]} 4. Bxc6 {[%emt 0:00:00]} bxc6 {[%emt 0:00:00]} 5. O-O {[%emt 0:01:01]} Bg7 {[%emt 0:00:00]} 6. Re1 {[%emt 0:00:59]} Nh6 {[%emt 0:01:43]} 7. c3 {[%emt 0:01:16]} O-O {[%emt 0:00:46]} 8. h3 {[%emt 0:00:12] B31: Sicilian: 2...Nc6 3 Bb5 g6} f5 {[%emt 0:01:27]} 9. e5 {[%emt 0:00:01]} Nf7 {[%emt 0:00:29]} 10. d3 {[%emt 0:00:02]} Rb8 {[%emt 0:22:41]} 11. Na3 {[%emt 0:06:38]} d6 $146 {[%emt 0:11:12]} ({Predecessor:} 11... Ba6 12. Nc4 Bxc4 13. dxc4 d6 14. e6 Ne5 15. Nxe5 Bxe5 {1-0 (53) Caruana,F (2808)-Eljanov,P (2739) Baku 2016}) 12. exd6 {[%emt 0:17:47]} exd6 {[%emt 0:00:15]} 13. d4 {[%emt 0:02:09]} cxd4 {[%emt 0:03:24]} 14. Nxd4 {[%emt 0:00:03]} Bd7 {[%emt 0:04:29]} 15. f4 {[%emt 0:09:36]} (15. Ne6 $11 Bxe6 16. Rxe6) 15... Re8 {[%emt 0:03:52]} 16. Nf3 {[%emt 0:08:22]} Qb6+ {[%emt 0:08:00]} 17. Kh2 {[%emt 0:05:38]} Rxe1 {[%emt 0:01:32]} 18. Qxe1 {[%emt 0:01:09]} Re8 {[%emt 0:00:30]} 19. Qg1 {[%emt 0:02:42]} d5 {[%emt 0:02:46]} 20. Qxb6 {[%emt 0:09:31]} axb6 {[%emt 0:00:06]} 21. Nc2 {[%emt 0:00:06]} c5 {[%emt 0:02:07]} 22. Be3 $2 {[%emt 0:03:02]} (22. Nce1 $17) 22... Ba4 {[%emt 0:01:57]} 23. Nfe1 {[%emt 0:03:01]} Nd6 {[%emt 0:07:48]} 24. Rd1 {[%emt 0:04:39]} Nc4 {[%emt 0:03:54]} 25. Bc1 {[%emt 0:01:47]} Bxc2 {[%emt 0:03:57]} 26. Nxc2 {[%emt 0:00:02]} Re2 {[%emt 0:00:14]} 27. Ne1 {[%emt 0:05:07]} Nxb2 {[%emt 0:02:04]} 28. Bxb2 {[%emt 0:00:42]} Rxb2 {[%emt 0:00:07]} 29. Rxd5 {[%emt 0:00:08]} (29. Rd3 {[%emt 0:18:58]} Bxc3 30. Rxd5 {[%emt 0:00:00]} Be5 $4 {[%emt 0:19:40][%mdl 8192]} (30... Bxe1 $19 {and all is fine.} 31. Rd8+ Kg7 32. Rd7+ Kh6) 31. Nf3) 29... Bxc3 {[%emt 0:00:45]} 30. Nf3 {[%emt 0:00:22]} Bf6 {[%emt 0:02:50]} 31. Rd6 {[%emt 0:02:01]} Kf7 {[%emt 0:01:03]} 32. Rc6 {[%emt 0:00:01]} Ke7 $19 {[%emt 0:07:59]} 33. a4 {[%emt 0:00:01]} Rb4 {[%emt 0:01:33]} 34. a5 {[%emt 0:00:01]} bxa5 {[%emt 0:00:46]} 35. Rxc5 {[%emt 0:00:01]} a4 {[%emt 0:00:48]} 36. Kg3 {[%emt 0:02:22]} a3 {[%emt 0:01:52]} 37. Ra5 {[%emt 0:00:01]} Rb3 {[%emt 0:01:36]} 38. Ra7+ {[%emt 0:00:01]} Kd8 {[%emt 0:00:19]} 39. Kh2 {[%emt 0:00:40]} Bc3 {[%emt 0:02:38]} 40. Ng5 {[%emt 0:00:53]} Bd2 {[%emt 0:01:15]} 41. Ne6+ {[%emt 0:31:39]} Kc8 {[%emt 0:30:16]} 42. Ra4 {[%emt 0:09:19]} Bb4 {[%emt 0:00:00]} 43. Nd4 {[%emt 0:00:00]} Rb2 {[%emt 0:00:00]} 44. Nc2 {[%emt 0:00:00]} Rxc2 {[%emt 0:00:00]} 45. Rxb4 {[%emt 0:00:00]} a2 {[%emt 0:00:00]} 46. Ra4 {[%emt 0:00:00]} Kb7 {[%emt 0:00:00]} 47. Kg3 {[%emt 0:00:00]} Kb6 {[%emt 0:00:00]} 48. Kh4 {[%emt 0:00:00]} Kb5 {[%emt 0:00:00]} 49. Ra8 {[%emt 0:00:00]} Kb4 {[%emt 0:00:00]} 50. g4 {[%emt 0:00:00]} fxg4 {[%emt 0:00:00]} 51. hxg4 {[%emt 0:00:00]} Kb3 {[%emt 0:00:00]} 52. f5 {[%emt 0:00:00]} gxf5 {[%emt 0:00:00]} 53. gxf5 {[%emt 0:00:00]} Kb2 {[%emt 0:00:00]} 54. Rb8+ {[%emt 0:00:00]} Kc1 {[%emt 0:00:00]} 55. Ra8 {[%emt 0:00:00]} Kb1 {[%emt 0:00:00]} 56. Kg5 {[%emt 0:00:00]} a1=Q {[%emt 0:00:00]} 57. Rxa1+ {[%emt 0:00:00]} Kxa1 {[%emt 0:00:00]} 58. Kh6 {[%emt 0:00:00]} Rf2 {[%emt 0:00:00]} 0-1

[Event "NED-ch U16 Youth 2019"]
[Site "Assen"]
[Date "2019.04.30"]
[Round "3.2"]
[White "Elgersma, Onno"]
[Black "Maters, Arthur"]
[Result "1-0"]
[ECO "B23"]
[WhiteElo "2174"]
[BlackElo "2043"]
[Annotator "NA"]
[PlyCount "81"]
[EventDate "2019.04.28"]
[EventType "swiss"]
[EventCountry "NED"]
[SourceTitle "playchess.com"]
[Source "ChessBase"]
[SourceQuality "1"]
[TimeControl "40/5400+30:1800+30"]

1. e4 {[%emt 0:00:00]} c5 {[%emt 0:00:00]} 2. Nc3 {[%emt 0:00:39]} d6 {[%emt 0:00:00]} 3. Nge2 {[%emt 0:01:58]} Nf6 {[%emt 0:00:00]} 4. g3 {[%emt 0:00:33]} e5 {[%emt 0:00:00]} (4... g6 5. Bg2 Nc6 6. d3 Bg7 7. h3 O-O 8. Be3 Rb8 9. f4 Ne8 10. a4 Nd4 11. O-O Nc7 12. g4 a6 13. Rb1 Bd7 14. Ng3 b5 15. axb5 axb5 16. Nce2 b4 17. f5 {0-1 (41) Fedoseev,V (2724)-Giri,A (2783) Wijk aan Zee 2019}) 5. Bg2 {[%emt 0:01:07]} Be7 {[%emt 0:00:11]} 6. O-O {[%emt 0:01:37] B23: Closed Sicilian: Lines without g3} O-O {[%emt 0:02:58]} 7. d3 {[%emt 0:02:32]} Be6 {[%emt 0:01:28]} 8. f4 $146 {[%emt 0:03:45]} ({Predecessor:} 8. Be3 Nc6 9. a3 a6 10. Qd2 b5 11. Na2 Rc8 {0-1 (21) Lantman,R-De Oliveira,J Joao Pessoa 2011}) 8... Bg4 {[%emt 0:08:50]} 9. h3 {[%emt 0:05:13]} Bxe2 {[%emt 0:00:12]} 10. Nxe2 {[%emt 0:00:25]} Nc6 {[%emt 0:03:07]} 11. c3 {[%emt 0:05:13]} d5 {[%emt 0:04:37]} 12. fxe5 {[%emt 0:10:48]} Nxe5 {[%emt 0:00:14]} 13. Rf5 {[%emt 0:02:32]} Ng6 {[%emt 0:10:03]} 14. exd5 {[%emt 0:01:41]} Qd7 {[%emt 0:00:08]} 15. Qf1 {[%emt 0:01:23]} Bd6 {[%emt 0:00:06]} 16. c4 {[%emt 0:08:13]} Rae8 {[%emt 0:02:30]} 17. Rf3 {[%emt 0:07:46]} Nh5 {[%emt 0:08:03]} 18. g4 {[%emt 0:07:43]} Nh4 $2 {[%emt 0:05:42]} (18... Nf6 $16) 19. gxh5 {[%emt 0:09:14]} Nxf3+ {[%emt 0:00:16]} 20. Bxf3 {[%emt 0:00:34]} ({Don't take} 20. Qxf3 Qe7 $18) 20... Qf5 {[%emt 0:01:57]} 21. Be4 {[%emt 0:02:27]} Qxh5 {[%emt 0:01:12]} 22. Bf4 {[%emt 0:01:37]} Bxf4 {[%emt 0:01:36]} 23. Nxf4 {[%emt 0:00:26]} Qg5+ {[%emt 0:00:17]} 24. Kh1 {[%emt 0:03:42]} Qe5 {[%emt 0:02:39]} 25. Qf2 {[%emt 0:01:46]} b5 $18 {[%emt 0:09:41]} 26. Bg2 {[%emt 0:12:22]} g5 {[%emt 0:19:25]} 27. Nh5 {[%emt 0:00:03]} f5 {[%emt 0:00:06]} 28. h4 {[%emt 0:02:29]} h6 {[%emt 0:02:22]} 29. Rg1 {[%emt 0:01:51]} bxc4 {[%emt 0:06:04]} 30. dxc4 {[%emt 0:00:11]} a5 {[%emt 0:00:03]} 31. Qd2 {[%emt 0:02:59]} f4 {[%emt 0:01:50]} 32. Qc2 {[%emt 0:00:11]} Qd6 {[%emt 0:00:22]} 33. Bf3 {[%emt 0:01:11]} Re3 {[%emt 0:00:40]} 34. Qg2 {[%emt 0:01:49]} Rf5 {[%emt 0:01:10]} 35. Qh3 {[%emt 0:00:33]} Qg6 {[%emt 0:01:47]} 36. Qg4 {[%emt 0:00:29]} Kh7 {[%emt 0:00:59]} 37. d6 {[%emt 0:00:23]} Rf8 {[%emt 0:04:49]} 38. d7 {[%emt 0:00:18]} Rd8 {[%emt 0:00:53]} 39. Nxf4 {[%emt 0:00:45]} Qf7 {[%emt 0:00:08]} 40. hxg5 {[%emt 0:00:13]} h5 {[%emt 0:02:27]} 41. g6+ {[%emt 0:30:10]} 1-0

[Event "NED-ch U16 Youth 2019"]
[Site "Assen"]
[Date "2019.04.30"]
[Round "3.3"]
[White "Shakhverdian, William"]
[Black "Grutter, Tim"]
[Result "1/2-1/2"]
[ECO "B48"]
[WhiteElo "1949"]
[BlackElo "2029"]
[Annotator "NA"]
[PlyCount "111"]
[EventDate "2019.04.28"]
[EventType "swiss"]
[EventCountry "NED"]
[SourceTitle "playchess.com"]
[Source "ChessBase"]
[SourceQuality "1"]
[TimeControl "40/5400+30:1800+30"]

1. e4 {[%emt 0:00:00]} c5 {[%emt 0:00:00]} 2. Nf3 {[%emt 0:00:00]} e6 {[%emt 0:00:00]} 3. d4 {[%emt 0:00:00]} cxd4 {[%emt 0:00:00]} 4. Nxd4 {[%emt 0:00:00]} Nc6 {[%emt 0:00:00]} 5. Nc3 {[%emt 0:00:04]} Qc7 {[%emt 0:00:05]} 6. Be3 {[%emt 0:00:04]} a6 {[%emt 0:00:02]} 7. Qf3 {[%emt 0:00:20] B48: Sicilian: Taimanov: 5 Nc3 Qc7 6 Be3 a6 without Be2} Bd6 {[%emt 0:00:54]} (7... Nf6 8. O-O-O Ne5 9. Qg3 b5 10. f4 Neg4 11. Bd2 b4 12. Na4 h5 13. Bd3 d5 14. e5 Ne4 15. Bxe4 dxe4 {½-½ (48) Caruana,F (2832)-Shankland,S (2724) Germany 2019}) 8. O-O-O {[%emt 0:01:32]} Be5 {[%emt 0:00:09]} 9. Nxc6 {[%emt 0:09:59]} bxc6 {[%emt 0:02:13]} 10. Bd4 {[%emt 0:01:55]} Bxd4 {[%emt 0:06:20]} 11. Rxd4 {[%emt 0:00:05]} Ne7 {[%emt 0:03:28]} 12. Qg3 {[%emt 0:04:32]} Qxg3 {[%emt 0:00:45]} 13. hxg3 {[%emt 0:00:05]} d5 {[%emt 0:05:47] [#]} 14. Rd2 $146 {[%emt 0:04:04]} ({Predecessor:} 14. Na4 e5 {1-0 (41) Grigoryan,K (2544)-Miladinovic,I (2545) Kragujevac 2016}) 14... a5 {[%emt 0:03:47]} 15. exd5 {[%emt 0:08:22]} cxd5 {[%emt 0:01:30]} 16. Bb5+ {[%emt 0:03:12]} Bd7 {[%emt 0:00:42]} 17. g4 {[%emt 0:16:51]} a4 {[%emt 0:03:07]} 18. Rd4 {[%emt 0:11:02]} Bxb5 {[%emt 0:03:29]} 19. Nxb5 {[%emt 0:00:33]} Kd7 {[%emt 0:01:06]} 20. Nc3 {[%emt 0:01:58]} a3 {[%emt 0:01:13]} 21. b3 {[%emt 0:01:26]} e5 {[%emt 0:13:48]} (21... h6 $11 {remains equal.}) 22. Ra4 {[%emt 0:05:29]} (22. Rb4 $16) 22... Rxa4 {[%emt 0:00:32]} 23. Nxa4 {[%emt 0:00:02]} Kc6 {[%emt 0:02:35]} 24. Nc3 {[%emt 0:05:21]} h6 {[%emt 0:07:13]} 25. Nb1 {[%emt 0:03:42]} Ra8 {[%emt 0:01:20]} 26. Re1 {[%emt 0:04:39]} f6 {[%emt 0:03:19]} 27. c3 {[%emt 0:00:32]} Ng6 {[%emt 0:02:48]} 28. Kc2 {[%emt 0:00:40]} Kb5 {[%emt 0:12:09]} 29. Rd1 {[%emt 0:00:31]} Ne7 {[%emt 0:02:28]} 30. g3 {[%emt 0:02:18]} Kc6 {[%emt 0:02:49]} 31. b4 {[%emt 0:00:37]} Nc8 {[%emt 0:00:24]} 32. Kb3 {[%emt 0:00:42]} Nd6 {[%emt 0:00:58]} 33. Nxa3 {[%emt 0:00:06]} Ne4 $14 {[%emt 0:02:05]} 34. f3 {[%emt 0:07:09]} Nxg3 {[%emt 0:00:40]} 35. Nc2 {[%emt 0:01:00]} h5 {[%emt 0:03:25]} 36. gxh5 {[%emt 0:00:19]} Nxh5 {[%emt 0:01:45]} 37. a4 {[%emt 0:00:33]} Nf4 {[%emt 0:02:49]} 38. b5+ {[%emt 0:03:39]} Kc5 {[%emt 0:02:01]} 39. Nb4 {[%emt 0:00:04]} Rc8 {[%emt 0:01:56]} 40. b6 {[%emt 0:05:50]} Kxb6 {[%emt 0:03:55]} 41. Nxd5+ {[%emt 0:30:32]} Nxd5 {[%emt 0:30:35]} 42. Rxd5 {[%emt 0:00:02]} Kc6 {[%emt 0:02:15]} 43. Kc4 {[%emt 0:00:00]} Rh8 {[%emt 0:00:00]} 44. Rc5+ {[%emt 0:00:00]} Kd6 {[%emt 0:00:00]} 45. Rd5+ {[%emt 0:00:00]} Kc6 {[%emt 0:00:00]} 46. Rc5+ {[%emt 0:00:00]} Kd6 {[%emt 0:00:00]} 47. Rd5+ {[%emt 0:00:00]} Ke6 {[%emt 0:00:00]} 48. Rd3 {[%emt 0:00:00]} f5 {[%emt 0:00:00]} 49. a5 {[%emt 0:00:00]} g5 {[%emt 0:00:00]} 50. Kc5 {[%emt 0:00:00]} e4 {[%emt 0:00:00]} 51. fxe4 {[%emt 0:01:27]} fxe4 {[%emt 0:00:00]} 52. Rd5 {[%emt 0:01:08]} Ra8 {[%emt 0:09:34]} 53. Kd4 e3 54. Rxg5 {[%emt 0:04:34]} e2 {[%emt 0:01:00]} 55. Re5+ Kd6 {[%emt 0:00:30]} 56. Rxe2 {[%emt 0:01:00]} 1/2-1/2

[Event "NED-ch U16 Youth 2019"]
[Site "Assen"]
[Date "2019.04.30"]
[Round "3.5"]
[White "Albers, Sasa"]
[Black "Roothaan, Elmar"]
[Result "1-0"]
[ECO "B20"]
[WhiteElo "1690"]
[BlackElo "1711"]
[Annotator "NA"]
[PlyCount "95"]
[EventDate "2019.04.28"]
[EventType "swiss"]
[EventCountry "NED"]
[SourceTitle "playchess.com"]
[Source "ChessBase"]
[SourceQuality "1"]
[TimeControl "40/5400+30:1800+30"]

1. e4 {[%emt 0:00:00]} b6 {[%emt 0:00:09]} 2. g3 {[%emt 0:00:00]} Bb7 {[%emt 0:00:12]} 3. Bg2 {[%emt 0:00:00]} c5 {[%emt 0:00:25]} 4. d3 {[%emt 0:00:23]} e6 {[%emt 0:00:17]} 5. Nd2 {[%emt 0:00:29]} Be7 {[%emt 0:00:33]} 6. Ngf3 {[%emt 0:00:28]} Nc6 {[%emt 0:00:34]} 7. O-O {[%emt 0:00:05]} Nf6 {[%emt 0:00:54]} 8. e5 {[%emt 0:00:34]} Nd5 {[%emt 0:00:22]} 9. c4 {[%emt 0:00:15]} Nc7 {[%emt 0:03:04]} 10. Ne4 {[%emt 0:01:20]} d5 {[%emt 0:00:24]} 11. exd6 {[%emt 0:00:12]} Bxd6 {[%emt 0:00:08]} 12. Nxd6+ {[%emt 0:01:44]} Qxd6 {[%emt 0:00:12]} 13. Bf4 {[%emt 0:00:47]} Qd7 {[%emt 0:01:15]} 14. Ne5 {[%emt 0:01:07]} Nxe5 {[%emt 0:01:07]} 15. Bxb7 {[%emt 0:00:27]} Rb8 {[%emt 0:00:06]} 16. Bxe5 {[%emt 0:01:10]} Rxb7 {[%emt 0:00:03]} 17. Bxg7 {[%emt 0:00:14]} Rg8 {[%emt 0:00:03]} 18. Bc3 {[%emt 0:01:59]} Qc6 {[%emt 0:04:29]} 19. Qh5 {[%emt 0:02:06]} Rb8 {[%emt 0:08:19]} 20. Rfe1 {[%emt 0:01:16]} Rd8 {[%emt 0:09:25]} 21. Re3 {[%emt 0:01:11]} Rg6 {[%emt 0:01:25]} 22. Qxh7 {[%emt 0:01:41]} Ke7 {[%emt 0:00:16]} 23. Rae1 {[%emt 0:02:08]} Ne8 {[%emt 0:01:05]} 24. Re4 {[%emt 0:05:39]} Nd6 {[%emt 0:09:23]} 25. Rf4 {[%emt 0:00:40]} Rdg8 {[%emt 0:00:18]} 26. Re3 {[%emt 0:03:36]} Kf8 {[%emt 0:00:47]} 27. Qh4 {[%emt 0:03:30]} Qd7 {[%emt 0:01:43]} 28. Qh3 {[%emt 0:12:07]} Nf5 {[%emt 0:00:55]} 29. Re1 {[%emt 0:12:43]} Rh6 {[%emt 0:19:05]} 30. Qg2 {[%emt 0:01:02]} f6 {[%emt 0:01:19]} 31. Qe4 {[%emt 0:04:14]} Kf7 {[%emt 0:02:44]} 32. Rg4 {[%emt 0:12:24]} Rgh8 {[%emt 0:05:20]} 33. h4 {[%emt 0:01:13]} Re8 {[%emt 0:08:40]} 34. d4 {[%emt 0:09:33]} cxd4 {[%emt 0:00:54]} 35. Bxd4 {[%emt 0:00:36]} e5 {[%emt 0:05:20]} 36. Be3 {[%emt 0:02:16]} Nxe3 {[%emt 0:03:59]} 37. Qxe3 {[%emt 0:00:30]} Qxg4 {[%emt 0:01:47]} 38. Qxh6 {[%emt 0:00:05]} Qxc4 {[%emt 0:00:16]} 39. Rc1 {[%emt 0:01:02]} Qa4 {[%emt 0:01:54]} 40. b3 {[%emt 0:10:36]} Qe4 {[%emt 0:04:50]} 41. h5 {[%emt 0:33:28]} Re7 {[%emt 0:33:26]} 42. Qh8 {[%emt 0:00:00]} Rd7 {[%emt 0:00:00]} 43. h6 {[%emt 0:00:00]} Qg4 {[%emt 0:00:00]} 44. Qh7+ {[%emt 0:00:00]} Ke6 {[%emt 0:00:00]} 45. Rc6+ {[%emt 0:00:00]} Kd5 {[%emt 0:00:00]} 46. Qc2 {[%emt 0:00:00]} f5 {[%emt 0:00:00]} 47. Rf6 {[%emt 0:00:00]} f4 {[%emt 0:00:00]} 48. Qc4# {[%emt 0:00:00]} 1-0

[Event "NED-ch U16 Youth 2019"]
[Site "Assen"]
[Date "2019.04.30"]
[Round "3.6"]
[White "Van der Schaaf, Tristan"]
[Black "Gevorkjan, Lewon"]
[Result "1-0"]
[ECO "E12"]
[WhiteElo "1807"]
[BlackElo "1808"]
[Annotator "NA"]
[PlyCount "214"]
[EventDate "2019.04.28"]
[EventType "swiss"]
[EventCountry "NED"]
[SourceTitle "playchess.com"]
[Source "ChessBase"]
[SourceQuality "1"]
[TimeControl "40/5400+30:1800+30"]

1. d4 {[%emt 0:00:00]} e6 {[%emt 0:00:00]} 2. c4 {[%emt 0:00:00]} b6 {[%emt 0:00:00]} 3. Nc3 {[%emt 0:00:12]} Bb7 {[%emt 0:00:00]} 4. Nf3 {[%emt 0:02:21]} Nf6 {[%emt 0:01:48]} 5. Qc2 {[%emt 0:00:15]} c5 {[%emt 0:10:43]} 6. e4 {[%emt 0:08:24]} cxd4 {[%emt 0:02:05] E12: Queen's Indian: Unusual White 4th moves, 4 a3, 4 Nc3 Bb7 5 a3 and 4 Nc3 Bb7} 7. Nxd4 {[%emt 0:00:06]} Bc5 {[%emt 0:00:15]} (7... Bb4 8. f3 O-O 9. Bg5 Qc7 10. a3 Be7 11. Rd1 a6 12. Be2 d6 13. O-O Nbd7 14. Be3 Rac8 15. Rc1 Rfe8 {0-1 (46) Jakovenko,D (2713)-Vallejo Pons,F (2706) Khanty-Mansiysk 2013}) 8. Nb3 {[%emt 0:00:07]} Nc6 {[%emt 0:00:53]} 9. Bg5 $146 {[%emt 0:01:36]} ({Predecessor:} 9. Bd3 O-O 10. O-O Rc8 11. Qe2 e5 12. Be3 d6 13. Rad1 Ne8 14. Nd5 {0-1 (33) Short,P (2309)-Brady,S (2384) Dublin 2009}) 9... h6 {[%emt 0:01:46]} 10. Bh4 {[%emt 0:00:07]} Be7 {[%emt 0:05:08]} 11. Be2 {[%emt 0:03:32]} O-O {[%emt 0:05:10]} 12. O-O {[%emt 0:02:19]} Rc8 {[%emt 0:01:46]} 13. f3 {[%emt 0:05:30]} Ba6 {[%emt 0:04:41]} (13... Ne5 $15 14. Nd2 {[#]} b5 $1 {[%mdl 512]}) 14. Nb5 {[%emt 0:18:42]} (14. f4 $11) 14... Bxb5 {[%emt 0:06:54]} 15. cxb5 {[%emt 0:00:22]} Ne5 {[%emt 0:00:45]} 16. Qd1 {[%emt 0:03:43]} Ng6 {[%emt 0:03:19]} 17. Bf2 {[%emt 0:04:34]} Nf4 {[%emt 0:12:15]} 18. Nd4 {[%emt 0:04:52]} (18. Bd4 $11) 18... Bc5 {[%emt 0:04:38]} 19. a3 {[%emt 0:04:21]} Ne8 {[%emt 0:07:34]} ({Black should try} 19... Qc7 $17 20. b4 Bxd4 21. Bxd4 e5) 20. b4 {[%emt 0:02:11]} Qg5 {[%emt 0:01:13]} 21. g3 $1 {[%emt 0:01:50]} Nh3+ {[%emt 0:00:34]} 22. Kg2 {[%emt 0:00:10]} Nxf2 {[%emt 0:00:12]} (22... Bxd4 $5 23. Bxd4 Nf4+ 24. Kh1 Nxe2 25. Qxe2 Nc7 $11) 23. Rxf2 {[%emt 0:00:21]} Bxd4 $1 {[%emt 0:00:24]} 24. Qxd4 {[%emt 0:00:12]} Nc7 {[%emt 0:01:02]} 25. f4 {[%emt 0:00:43]} Qe7 $11 {[%emt 0:01:30]} 26. a4 {[%emt 0:04:23]} d5 {[%emt 0:01:59]} 27. e5 {[%emt 0:00:57]} Qd7 {[%emt 0:01:38]} 28. Bd3 {[%emt 0:03:43]} g6 {[%emt 0:03:25]} 29. Rc1 {[%emt 0:02:07]} Na8 {[%emt 0:00:16]} 30. Qb2 {[%emt 0:03:49]} Rcd8 {[%emt 0:06:35]} 31. Rc6 {[%emt 0:02:17]} Qe7 {[%emt 0:01:44]} 32. Rfc2 {[%emt 0:04:17]} Rfe8 {[%emt 0:00:41]} 33. Rc1 {[%emt 0:01:08]} Qf8 {[%emt 0:00:44]} 34. Qd4 {[%emt 0:02:16]} Qg7 {[%emt 0:00:38]} 35. h3 {[%emt 0:02:14]} Kh8 {[%emt 0:01:33]} 36. a5 {[%emt 0:02:18]} Qf8 {[%emt 0:00:52]} 37. g4 {[%emt 0:02:24]} Qe7 {[%emt 0:02:32]} 38. Kh2 {[%emt 0:03:28]} Rg8 {[%emt 0:03:02]} 39. Rd6 {[%emt 0:02:25]} h5 {[%emt 0:01:20]} 40. Kg3 {[%emt 0:03:01]} Kh7 {[%emt 0:00:51]} 41. Rxd8 {[%emt 0:30:23]} Qxd8 {[%emt 0:31:31]} 42. gxh5 {[%emt 0:00:00]} Kg7 {[%emt 0:00:00]} 43. hxg6 {[%emt 0:00:00]} Rh8 {[%emt 0:00:00]} 44. Rh1 {[%emt 0:00:00]} fxg6 {[%emt 0:00:00]} 45. h4 {[%emt 0:00:00]} Qc7 {[%emt 0:00:00]} 46. Rg1 {[%emt 0:00:00]} Kf7 {[%emt 0:00:00]} 47. Kf3 {[%emt 0:00:00]} Rxh4 {[%emt 0:00:00]} 48. Bxg6+ {[%emt 0:00:00]} Kf8 {[%emt 0:00:00]} 49. axb6 {[%emt 0:02:04]} axb6 {[%emt 0:00:00]} 50. Ra1 {[%emt 0:00:48]} Qc8 {[%emt 0:00:00]} 51. Ra7 {[%emt 0:00:35]} Qc1 {[%emt 0:00:00]} 52. Ra1 {[%emt 0:02:24]} Qc8 {[%emt 0:00:00]} 53. Kg3 {[%emt 0:00:42]} Rh6 {[%emt 0:00:27]} 54. Qd3 {[%emt 0:00:02]} Rxg6+ {[%emt 0:02:53]} 55. Qxg6 {[%emt 0:00:12]} Qc3+ {[%emt 0:00:04]} 56. Kg4 {[%emt 0:00:22]} Qxa1 {[%emt 0:00:04]} 57. Qf6+ {[%emt 0:00:10]} Kg8 {[%emt 0:00:34]} 58. Qxe6+ {[%emt 0:00:17]} Kg7 {[%emt 0:02:13]} 59. Qe7+ {[%emt 0:00:45]} Kh6 {[%emt 0:03:11]} 60. Qg5+ {[%emt 0:01:47]} Kh7 {[%emt 0:00:16]} 61. Qe7+ {[%emt 0:01:31]} Kh6 {[%emt 0:01:39]} 62. Qg5+ {[%emt 0:00:31]} Kh7 {[%emt 0:00:02]} 63. Kf5 {[%emt 0:00:27]} Qa7 {[%emt 0:02:17]} 64. Kf6 {[%emt 0:00:59]} Kh8 {[%emt 0:03:52]} 65. e6 {[%emt 0:00:38]} Qh7 {[%emt 0:00:07]} 66. e7 {[%emt 0:00:35]} Nc7 {[%emt 0:00:02]} 67. Ke5 {[%emt 0:01:01]} Qe4+ {[%emt 0:00:21]} 68. Kd6 {[%emt 0:00:00]} Ne8+ {[%emt 0:01:23]} 69. Kd7 {[%emt 0:00:06]} Ng7 {[%emt 0:00:33]} 70. Qh6+ {[%emt 0:00:41]} Kg8 {[%emt 0:00:13]} 71. Qxb6 {[%emt 0:00:34]} Qf5+ {[%emt 0:00:39]} 72. Kd8 {[%emt 0:00:32]} Qf7 {[%emt 0:00:40]} 73. Qc6 {[%emt 0:00:29]} Kh7 {[%emt 0:00:17]} 74. e8=Q {[%emt 0:00:24]} Nxe8 {[%emt 0:00:18]} 75. Qxe8 {[%emt 0:00:06]} Qxe8+ {[%emt 0:00:36]} 76. Kxe8 {[%emt 0:00:06]} d4 {[%emt 0:00:13]} 77. b6 {[%emt 0:00:01]} d3 {[%emt 0:00:02]} 78. b7 {[%emt 0:00:10]} d2 {[%emt 0:00:12]} 79. b8=Q {[%emt 0:00:04]} d1=Q {[%emt 0:00:07]} 80. Qc7+ {[%emt 0:00:18]} Kh8 {[%emt 0:00:47]} 81. Kf8 {[%emt 0:00:52]} Qg4 {[%emt 0:00:47]} 82. Qe5+ {[%emt 0:00:28]} Kh7 {[%emt 0:00:26]} 83. Qe7+ {[%emt 0:00:29]} Kh8 {[%emt 0:00:41]} 84. Qf6+ {[%emt 0:00:09]} Kh7 {[%emt 0:00:13]} 85. Qe7+ {[%emt 0:01:29]} Kh8 {[%emt 0:00:09]} 86. Qe5+ {[%emt 0:00:11]} Kh7 {[%emt 0:00:13]} 87. Qc7+ {[%emt 0:00:44]} Kh8 {[%emt 0:02:24]} 88. Qc3+ {[%emt 0:00:18]} Kh7 {[%emt 0:00:01]} 89. Qc2+ {[%emt 0:00:21]} Kh6 {[%emt 0:00:06]} 90. Qc6+ {[%emt 0:00:16]} Kh7 {[%emt 0:00:45]} 91. Qe4+ {[%emt 0:00:33]} Kh6 {[%emt 0:00:12]} 92. Qh1+ {[%emt 0:00:46]} Kg6 {[%emt 0:00:09]} 93. Qe4+ {[%emt 0:00:28]} Kh6 {[%emt 0:00:13]} 94. Ke7 {[%emt 0:00:43]} Qg7+ {[%emt 0:01:02]} 95. Kd6 {[%emt 0:00:18]} Qf8+ {[%emt 0:00:13]} 96. Kd5 {[%emt 0:00:14]} Qa8+ {[%emt 0:00:19]} 97. Kd4 {[%emt 0:00:18]} Qa7+ {[%emt 0:00:38]} 98. Kc4 {[%emt 0:00:22]} Qc7+ {[%emt 0:00:20]} 99. Kb5 {[%emt 0:00:51]} Qb8+ {[%emt 0:00:29]} 100. Ka4 {[%emt 0:01:08]} Qa7+ {[%emt 0:00:41]} 101. Kb3 {[%emt 0:00:08]} Qf7+ {[%emt 0:02:31]} 102. Qc4 {[%emt 0:00:05]} Qf5 {[%emt 0:00:00]} 103. Qc6+ {[%emt 0:01:04]} Kg7 {[%emt 0:00:00]} 104. Qc7+ {[%emt 0:00:28]} Kh6 {[%emt 0:00:00]} 105. Qd6+ {[%emt 0:00:25]} Kh7 {[%emt 0:00:01]} 106. Qe7+ {[%emt 0:02:51]} Kh6 {[%emt 0:02:29]} 107. Qc7 {[%emt 0:00:30]} Qf7+ 1-0